bitfinex-derivatives/quotes_BTCF0:USTF0_20260118
["timestamp","ask_amount","ask_price","bid_price","bid_amount"]
[1768738583377,0.010512,95167.0,95154.0,0.19306033]
[1768738583578,0.010512,95165.0,95154.0,0.19306033]
[1768738583778,0.17375518,95174.0,95154.0,0.23465494]
[1768738584178,0.010512,95166.0,95154.0,0.23465494]
[1768738584376,0.010512,95166.0,95154.0,0.23417044]
[1768738585179,0.17375518,95174.0,95154.0,0.23543309]
[1768738585379,0.010512,95166.0,95154.0,0.23543309]
[1768738585883,0.010512,95166.0,95154.0,0.19306033]
[1768738586081,0.010512,95166.0,95155.0,0.11744532]
[1768738586581,0.010512,95164.0,95155.0,0.11744532]
[1768738586782,0.17375518,95174.0,95155.0,0.15917538]
[1768738587384,0.010512,95164.0,95155.0,0.11744532]
[1768738587582,0.010512,95164.0,95155.0,0.15854628]
[1768738588083,0.010512,95164.0,95156.0,0.07565913]
[1768738588282,0.010512,95164.0,95155.0,0.23420541]
[1768738588779,0.010512,95164.0,95156.0,0.07565913]
[1768738588973,0.010512,95165.0,95156.0,0.07565913]
[1768738589484,0.17375518,95174.0,95156.0,0.07565913]
[1768738590282,0.17375518,95174.0,95155.0,0.15961203]
[1768738590483,0.010512,95165.0,95155.0,0.15915051]
[1768738590782,0.17375518,95174.0,95155.0,0.15915051]
[1768738591475,0.010512,95167.0,95155.0,0.15915051]
[1768738591675,0.010512,95167.0,95155.0,0.11744532]
[1768738591976,0.17375518,95174.0,95155.0,0.15974897]
[1768738592484,0.010512,95167.0,95155.0,0.15974897]
[1768738592687,0.17375518,95174.0,95155.0,0.15969938]
[1768738592888,0.17375518,95174.0,95162.0,5.1e-07]
[1768738593485,0.010512,95167.0,95162.0,5.1e-07]
[1768738593784,0.010512,95167.0,95155.0,0.15969938]
[1768738594288,0.010512,95167.0,95155.0,0.11744532]
[1768738594588,0.010512,95165.0,95155.0,0.15944943]
[1768738594889,0.17375518,95174.0,95155.0,0.15944943]
[1768738596393,0.010512,95167.0,95155.0,0.11744532]
[1768738596693,0.17375518,95174.0,95155.0,0.15940225]
[1768738597091,0.17375518,95174.0,95155.0,0.11744532]
[1768738597276,0.17375518,95174.0,95155.0,0.15940225]
[1768738597479,0.010512,95167.0,95155.0,0.15856206]
[1768738597792,0.17375518,95174.0,95155.0,0.15856206]
[1768738598788,0.17375518,95174.0,95168.0,1.1e-07]
[1768738600484,0.010512,95169.0,95156.0,0.07565913]
[1768738602090,0.010512,95169.0,95158.0,0.07565913]
[1768738602290,0.010512,95169.0,95157.0,0.07565913]
[1768738602796,0.010512,95169.0,95158.0,0.07565913]
[1768738606193,0.010512,95167.0,95158.0,0.07565913]
[1768738606396,0.17375518,95174.0,95158.0,0.07565913]
[1768738607496,0.010512,95167.0,95158.0,0.07565913]
[1768738608297,0.010512,95167.0,95157.0,0.07565913]
[1768738609296,0.010512,95167.0,95155.0,0.15876205]
[1768738609597,0.010512,95167.0,95156.0,0.11354828]
[1768738611588,0.010512,95167.0,95156.0,0.15514418]
[1768738612398,0.010512,95167.0,95156.0,0.11354828]
[1768738612696,0.010512,95167.0,95156.0,0.15514418]
[1768738613092,0.010512,95167.0,95159.0,0.05679662]
[1768738615100,0.05934457,95174.0,95159.0,0.05679662]
[1768738616096,0.010512,95168.0,95160.0,0.05679662]
[1768738616289,0.05934457,95174.0,95160.0,0.05679662]
[1768738617296,0.05934457,95174.0,95159.0,0.05679662]
[1768738617784,0.05934457,95174.0,95169.0,7.1e-07]
[1768738617990,0.09464,95174.0,95160.0,0.05679662]
[1768738619199,0.09464,95174.0,95164.0,6.2e-07]
[1768738619200,0.010512,95168.0,95164.0,6.2e-07]
[1768738619498,0.09464,95174.0,95164.0,6.2e-07]
[1768738621496,0.010512,95168.0,95164.0,6.2e-07]
[1768738621897,0.09464,95174.0,95157.0,0.07565913]
[1768738623398,0.010512,95169.0,95157.0,0.07565913]
[1768738623611,0.09464,95174.0,95157.0,0.07565913]
[1768738625401,0.010512,95170.0,95157.0,0.07565913]
[1768738625798,0.010512,95168.0,95157.0,0.07565913]
[1768738626100,0.09464,95174.0,95157.0,0.07565913]
[1768738627195,0.010512,95170.0,95157.0,0.07565913]
[1768738627392,0.09464,95174.0,95157.0,0.07565913]
[1768738628400,0.010512,95170.0,95157.0,0.07565913]
[1768738628605,0.09464,95174.0,95157.0,0.07565913]
[1768738628797,0.010511,95173.0,95170.0,2.3e-07]
[1768738629102,0.09464,95175.0,95158.0,0.07565913]
[1768738629404,0.010512,95171.0,95157.0,0.07565913]
[1768738629900,0.010512,95171.0,95156.0,0.23064257]
[1768738630201,0.09464,95175.0,95156.0,0.18920741]
[1768738630400,0.010512,95171.0,95156.0,0.18920741]
[1768738630894,0.010512,95171.0,95156.0,0.23039157]
[1768738631094,0.09464,95175.0,95156.0,0.15473244]
[1768738631294,0.09464,95175.0,95156.0,0.18920741]
[1768738631494,0.010512,95171.0,95156.0,0.18920741]
[1768738631698,0.010512,95171.0,95156.0,0.23154823]
[1768738632202,0.09464,95175.0,95156.0,0.23154823]
[1768738632401,0.010512,95171.0,95156.0,0.23136471]
[1768738632899,0.010513,95163.0,95156.0,0.18920741]
[1768738633103,0.010513,95163.0,95156.0,0.15570558]
[1768738633404,0.21365157,95175.0,95156.0,0.15570558]
[1768738633796,0.21365157,95175.0,95156.0,0.11354828]
[1768738634504,0.010512,95165.0,95156.0,0.15579323]
[1768738634689,0.21365157,95175.0,95156.0,0.04224495]
[1768738634690,0.11901157,95174.0,95156.0,0.04224495]
[1768738634895,0.11901157,95174.0,95155.0,0.05943355]
[1768738635496,0.11901157,95174.0,95156.0,0.04191633]
[1768738637306,0.010512,95167.0,95155.0,0.05943355]
[1768738638410,0.010512,95167.0,95156.0,0.04241277]
[1768738639309,0.010512,95167.0,95163.0,9.7e-07]
[1768738639509,0.010512,95167.0,95156.0,0.07565913]
[1768738642211,0.010512,95167.0,95155.0,0.17716773]
[1768738642504,0.010512,95170.0,95155.0,0.10037705]
[1768738642699,0.010512,95168.0,95155.0,0.10037705]
[1768738643613,0.010512,95168.0,95155.0,0.05943355]
[1768738644213,0.010512,95166.0,95155.0,0.05943355]
[1768738644413,0.010512,95166.0,95155.0,0.1003845]
[1768738645318,0.010512,95166.0,95155.0,0.05943355]
[1768738645512,0.010512,95166.0,95155.0,0.10144444]
[1768738645712,0.010512,95165.0,95155.0,0.10144444]
[1768738645912,0.11916846,95173.0,95152.0,0.10891732]
[1768738646118,0.010512,95166.0,95153.0,0.04238215]
[1768738646319,0.010512,95166.0,95152.0,0.10891732]
[1768738647025,0.010512,95169.0,95152.0,0.10891732]
[1768738647414,0.010512,95169.0,95153.0,0.15970337]
[1768738647724,0.010512,95169.0,95153.0,0.11732122]
[1768738647923,0.11916846,95172.0,95153.0,0.11732122]
[1768738648623,0.010512,95169.0,95153.0,0.11732122]
[1768738652330,0.08593348,95173.0,95153.0,0.11732122]
[1768738653430,0.010512,95168.0,95153.0,0.11732122]
[1768738654534,0.010512,95166.0,95153.0,0.11732122]
[1768738655531,0.010512,95164.0,95153.0,0.11732122]
[1768738657138,0.11916846,95172.0,95153.0,0.11732122]
[1768738658439,0.010512,95167.0,95153.0,0.11732122]
[1768738659332,0.010512,95167.0,95154.0,0.11344905]
[1768738660640,0.010512,95167.0,95154.0,0.1702158]
[1768738661240,0.010512,95167.0,95155.0,0.11344905]
[1768738665739,0.09464,95170.0,95155.0,0.11344905]
[1768738665946,0.010512,95165.0,95155.0,0.11344905]
[1768738667850,0.09464,95170.0,95155.0,0.11344905]
[1768738668241,0.010512,95167.0,95155.0,0.11344905]
[1768738669046,0.010512,95167.0,95159.0,0.05676675]
[1768738671650,0.09464,95170.0,95159.0,0.05676675]
[1768738672450,0.010512,95167.0,95157.0,0.05676675]
[1768738672650,0.09464,95170.0,95157.0,0.1649518]
[1768738673055,0.09464,95170.0,95158.0,0.05676675]
[1768738673449,0.010512,95167.0,95158.0,0.05676675]
[1768738673841,0.09464,95170.0,95158.0,0.05676675]
[1768738674447,0.010512,95169.0,95158.0,0.05676675]
[1768738676342,0.010512,95169.0,95159.0,0.05676675]
[1768738677254,0.010512,95169.0,95158.0,0.05676675]
[1768738681455,0.010512,95169.0,95158.0,0.1649518]
[1768738681755,0.010512,95169.0,95159.0,0.10818505]
[1768738682358,0.010512,95169.0,95160.0,0.05676675]
[1768738688364,0.010512,95167.0,95160.0,0.05676675]
[1768738688955,0.010512,95167.0,95164.0,5e-07]
[1768738689152,0.010512,95165.0,95159.0,0.09110371]
[1768738689356,0.010512,95169.0,95159.0,0.09110371]
[1768738696869,0.010512,95167.0,95159.0,0.09110371]
[1768738699661,0.09464,95170.0,95159.0,0.09110371]
[1768738700558,0.010512,95167.0,95159.0,0.09110371]
[1768738700758,0.010512,95165.0,95159.0,0.09110371]
[1768738700953,0.09464,95170.0,95159.0,0.09110371]
[1768738702371,0.010512,95165.0,95146.0,0.07565913]
[1768738703069,0.09464,95170.0,95145.0,0.09464]
[1768738703371,0.010512,95164.0,95144.0,0.17261141]
[1768738703871,0.010512,95164.0,95144.0,0.213999]
[1768738704271,0.010512,95164.0,95150.0,0.20711324]
[1768738704467,0.010512,95164.0,95152.0,0.09015871]
[1768738704674,0.010512,95164.0,95153.0,0.11695453]
[1768738705374,0.09464,95170.0,95153.0,0.11695453]
[1768738705375,0.010513,95161.0,95153.0,0.11695453]
[1768738705675,0.010513,95161.0,95154.0,0.11695453]
[1768738706473,0.010512,95164.0,95154.0,0.11695453]
[1768738709082,0.010512,95164.0,95155.0,0.17375043]
[1768738710176,0.010513,95162.0,95155.0,0.17375043]
[1768738711676,0.010513,95162.0,95155.0,0.11695453]
[1768738712585,0.09464,95170.0,95155.0,0.11695453]
[1768738712786,0.09464,95170.0,95155.0,5.3e-07]
[1768738713082,0.010513,95164.0,95155.0,5.3e-07]
[1768738713387,0.010513,95164.0,95155.0,0.05679643]
[1768738714289,0.010512,95167.0,95155.0,0.05679643]
[1768738714494,0.105152,95167.0,95155.0,0.05679643]
[1768738715593,0.010512,95165.0,95155.0,0.05679643]
[1768738716690,0.09464,95167.0,95155.0,0.05679643]
[1768738717093,0.03792756,95167.0,95156.0,0.11840259]
[1768738717593,0.010512,95165.0,95156.0,0.11840259]
[1768738717790,0.02741556,95167.0,95157.0,0.11840259]
[1768738719098,0.02741556,95167.0,95161.0,0.03785868]
[1768738721793,0.02741556,95167.0,95162.0,0.03785868]
[1768738722500,0.010512,95166.0,95162.0,0.02728868]
[1768738722901,0.02741556,95167.0,95162.0,0.02728868]
[1768738723094,0.02741556,95167.0,95159.0,0.0567959]
[1768738723294,0.02741556,95167.0,95158.0,0.0567959]
[1768738724195,0.02741556,95167.0,95158.0,0.17519849]
[1768738728007,0.02741556,95167.0,95159.0,0.0567959]
[1768738729101,0.02741556,95167.0,95158.0,0.11840259]
[1768738743120,0.02741556,95167.0,95158.0,0.17519849]
[1768738743518,0.03792756,95167.0,95158.0,0.17519849]
[1768738747612,0.02741556,95167.0,95158.0,0.17519849]
[1768738749109,0.02741556,95167.0,95158.0,0.11840259]
[1768738752529,0.02741556,95167.0,95160.0,0.03786807]
[1768738758329,0.02741556,95167.0,95159.0,0.03786807]
[1768738758530,0.02741556,95167.0,95160.0,0.03786807]
[1768738759132,0.02741556,95167.0,95163.0,0.03786807]
[1768738759527,0.02741556,95167.0,95163.0,0.02988207]
[1768738761721,0.02741556,95167.0,95163.0,0.02499098]
[1768738762833,0.02741556,95167.0,95163.0,0.02009421]
[1768738763332,0.02741556,95167.0,95158.0,0.11840259]
[1768738766324,0.02741556,95167.0,95159.0,0.0567959]
[1768738769331,0.02741556,95167.0,95158.0,0.11840259]
[1768738773145,0.02741556,95167.0,95158.0,0.17519849]
[1768738773336,0.02741556,95167.0,95158.0,0.11840259]
[1768738773529,0.02741556,95167.0,95158.0,0.17519849]
[1768738773937,0.02741556,95167.0,95158.0,0.11840259]
[1768738776145,0.02741556,95167.0,95158.0,0.16002206]
[1768738776338,0.02741556,95167.0,95158.0,0.11840259]
[1768738783852,0.02741556,95167.0,95158.0,0.17519849]
[1768738785954,0.02741556,95167.0,95160.0,0.0567959]
[1768738787752,0.02741556,95167.0,95159.0,0.0567959]
[1768738788354,0.02741556,95167.0,95160.0,0.0567959]
[1768738789160,0.02741556,95167.0,95158.0,0.11840259]
[1768738792850,0.02741556,95167.0,95160.0,0.03785849]
[1768738794161,0.02741556,95167.0,95159.0,0.03785849]
[1768738794752,0.09464,95168.0,95164.0,0.0283938]
[1768738794953,0.09464,95168.0,95164.0,0.01371824]
[1768738795152,0.09464,95168.0,95164.0,0.00392264]
[1768738795359,0.09464,95168.0,95159.0,0.03198007]
[1768738795558,0.09464,95168.0,95159.0,0.02707716]
[1768738795760,0.09464,95168.0,95158.0,0.11840259]
[1768738802776,0.09464,95169.0,95159.0,0.10810052]
[1768738805974,0.09464,95169.0,95158.0,0.09779808]
[1768738810874,0.09464,95169.0,95158.0,0.2058986]
[1768738812884,0.09464,95169.0,95159.0,0.0567959]
[1768738825694,0.09464,95169.0,95162.0,0.03785955]
[1768738827885,0.09464,95169.0,95163.0,0.03785955]
[1768738829197,0.09464,95169.0,95162.0,0.03785955]
[1768738833298,0.09464,95169.0,95161.0,0.03785955]
[1768738835701,0.09464,95169.0,95162.0,0.03785955]
[1768738836406,0.09464,95169.0,95162.0,0.03247585]
[1768738836901,0.09464,95169.0,95162.0,0.02710051]
[1768738839109,0.09464,95169.0,95154.0,0.0567959]
[1768738842705,0.09464,95169.0,95156.0,0.11864833]
[1768738843404,0.09464,95169.0,95157.0,0.0567959]
[1768738847316,0.09464,95171.0,95157.0,0.0567959]
[1768738849115,0.09464,95171.0,95161.0,0.0567959]
[1768738855017,0.20194634,95182.0,95161.0,0.11893794]
[1768738855217,0.09464,95181.0,95161.0,0.11893794]
[1768738855518,0.20419711,95181.0,95169.0,0.02839761]
[1768738855722,0.25436317,95181.0,95169.0,0.02839761]
[1768738855922,0.10955711,95180.0,95169.0,0.02839761]
[1768738856217,0.10955711,95180.0,95168.0,0.02839761]
[1768738856417,0.10955711,95180.0,95169.0,0.02839761]
[1768738857324,0.10955711,95180.0,95168.0,0.02839761]
[1768738857618,0.1600228,95180.0,95168.0,0.02839761]
[1768738857824,0.1600228,95180.0,95169.0,0.02839761]
[1768738858019,0.25241203,95180.0,95169.0,0.02839761]
[1768738858726,0.10955711,95179.0,95169.0,0.02839761]
[1768738860128,0.10955711,95178.0,95169.0,0.02839761]
[1768738860917,0.1415202,95179.0,95169.0,0.02839761]
[1768738861726,0.25107731,95179.0,95169.0,0.02839761]
[1768738861927,0.25132651,95179.0,95169.0,0.02839761]
[1768738863724,0.20194634,95179.0,95169.0,0.02839761]
[1768738863919,0.25207506,95179.0,95169.0,0.02839761]
[1768738864232,0.20194634,95179.0,95169.0,0.02839761]
[1768738864732,0.20194634,95179.0,95169.0,0.02839676]
[1768738865025,0.10955711,95176.0,95160.0,0.0567959]
[1768738865229,0.10955711,95175.0,95161.0,0.0567959]
[1768738865425,0.10955711,95175.0,95159.0,0.0567959]
[1768738865827,0.09238923,95176.0,95159.0,0.0567959]
[1768738866130,0.09238923,95176.0,95160.0,0.0567959]
[1768738866833,0.1421816,95176.0,95164.0,0.03786253]
[1768738867428,0.09238923,95176.0,95164.0,0.03786253]
[1768738867634,0.14161257,95176.0,95164.0,0.03786253]
[1768738868533,0.09238923,95176.0,95164.0,0.03786253]
[1768738868730,0.14138967,95176.0,95164.0,0.03786253]
[1768738868936,0.09238923,95176.0,95164.0,0.03786253]
[1768738869134,0.14138967,95176.0,95164.0,0.03786253]
[1768738869837,0.14177257,95176.0,95164.0,0.03786253]
[1768738872840,0.09238923,95176.0,95164.0,0.03786253]
[1768738873030,0.14266542,95176.0,95164.0,0.03786253]
[1768738874433,0.09238923,95176.0,95164.0,0.03786253]
[1768738874639,0.1431616,95176.0,95164.0,0.03786253]
[1768738875441,0.1431616,95176.0,95165.0,0.03786253]
[1768738875741,0.14260998,95176.0,95165.0,0.03786253]
[1768738878241,0.14260998,95176.0,95166.0,0.03786253]
[1768738878432,0.14186299,95176.0,95166.0,0.03786253]
[1768738879139,0.14186299,95176.0,95161.0,0.03786253]
[1768738879340,0.09238923,95176.0,95161.0,0.03786253]
[1768738879540,0.14186299,95176.0,95161.0,0.03786253]
[1768738880135,0.2514201,95176.0,95161.0,0.03786253]
[1768738880536,0.20194634,95176.0,95161.0,0.03786253]
[1768738880738,0.25128208,95176.0,95161.0,0.03786253]
[1768738881743,0.20194634,95176.0,95161.0,0.03786253]
[1768738881943,0.25252512,95176.0,95161.0,0.03786253]
[1768738882545,0.20194634,95176.0,95161.0,0.03786253]
[1768738884444,0.25252512,95176.0,95161.0,0.03786253]
[1768738884746,0.20194634,95176.0,95161.0,0.03786253]
[1768738884945,0.25098317,95176.0,95161.0,0.03786253]
[1768738886544,0.20194634,95176.0,95161.0,0.03786253]
[1768738886749,0.25170791,95176.0,95161.0,0.03786253]
[1768738887744,0.20194634,95176.0,95161.0,0.03786253]
[1768738888046,0.25194021,95176.0,95161.0,0.03786253]
[1768738888747,0.11641858,95175.0,95161.0,0.03786253]
[1768738889147,0.11641858,95175.0,95166.0,0.03786253]
[1768738895650,0.11641858,95175.0,95163.0,0.03786253]
[1768738895850,0.11641858,95175.0,95164.0,0.03786253]
[1768738905460,0.11641858,95175.0,95165.0,0.03786253]
[1768738905758,0.11641858,95175.0,95167.0,0.03786253]
[1768738909169,0.11641858,95175.0,95166.0,0.03786253]
[1768738911970,0.0023112,95189.0,95168.0,0.03786253]
[1768738912162,0.0023112,95189.0,95171.0,0.03786253]
[1768738912362,0.16775449,95189.0,95170.0,0.15116235]
[1768738912565,0.11547343,95188.0,95172.0,0.03786253]
[1768738913367,0.11547343,95187.0,95172.0,0.03786253]
[1768738914372,0.11547343,95187.0,95171.0,0.03786253]
[1768738914569,0.1647,95187.0,95171.0,0.03786253]
[1768738914770,0.11547343,95187.0,95171.0,0.03786253]
[1768738914975,0.1647,95187.0,95171.0,0.03786253]
[1768738915865,0.16624577,95187.0,95171.0,0.03786253]
[1768738916372,0.11547343,95187.0,95171.0,0.03786253]
[1768738916666,0.11547343,95186.0,95171.0,0.03786253]
[1768738917370,0.16494226,95186.0,95171.0,0.03786253]
[1768738917768,0.11547343,95186.0,95171.0,0.03786253]
[1768738917963,0.11547343,95186.0,95172.0,0.03786253]
[1768738919167,0.11547343,95186.0,95171.0,0.03786253]
[1768738921971,0.11547343,95186.0,95174.0,0.03786253]
[1768738925073,0.11547343,95186.0,95178.0,0.02835074]
[1768738926971,0.11547343,95185.0,95173.0,0.03786253]
[1768738927168,0.11547343,95185.0,95177.0,0.02835001]
[1768738929171,0.11547343,95185.0,95168.0,0.03786253]
[1768738932078,0.21494276,95185.0,95168.0,0.03786253]
[1768738932279,0.11547343,95184.0,95168.0,0.03786253]
[1768738933374,0.11547343,95184.0,95169.0,0.03786253]
[1768738938385,0.11547343,95184.0,95170.0,0.03786253]
[1768738939384,0.11547343,95184.0,95176.0,0.03786253]
[1768738940285,0.11547343,95184.0,95177.0,0.03786253]
[1768738940785,0.11547343,95183.0,95177.0,0.03786253]
[1768738941386,0.11547343,95183.0,95178.0,0.03786253]
[1768738941578,0.21494276,95183.0,95173.0,0.0567959]
[1768738942379,0.11046163,95173.0,95157.0,0.13691929]
[1768738942682,0.05847741,95174.0,95159.0,0.09464]
[1768738942891,0.05069029,95188.0,95162.0,0.11385773]
[1768738943080,0.0023112,95189.0,95162.0,0.11385773]
[1768738943081,0.05300134,95189.0,95162.0,0.11385773]
[1768738944490,0.20047278,95187.0,95162.0,0.11385773]
[1768738944788,0.11046163,95184.0,95162.0,0.15589324]
[1768738945790,0.11046163,95184.0,95162.0,0.11385773]
[1768738948592,0.20047278,95184.0,95162.0,0.11385773]
[1768738948792,0.11046163,95183.0,95162.0,0.11385773]
[1768738956798,0.11046163,95183.0,95162.0,0.20849773]
[1768738962405,0.11046163,95183.0,95165.0,0.05676842]
[1768738962605,0.11046163,95183.0,95166.0,0.05676842]
[1768738962805,0.11046163,95183.0,95165.0,0.05676842]
[1768738963407,0.11046163,95183.0,95166.0,0.05676842]
[1768738969313,0.11442706,95180.0,95165.0,0.05676842]
[1768738969504,0.11442706,95180.0,95164.0,0.05676842]
[1768738969705,0.11442706,95180.0,95163.0,0.05676842]
[1768738971710,0.11442706,95180.0,95168.0,0.03785069]
[1768738975914,0.11442706,95180.0,95167.0,0.03785069]
[1768738976116,0.11442706,95180.0,95168.0,0.03785069]
[1768738977419,0.11442706,95180.0,95167.0,0.03785069]
[1768738979216,0.11442706,95180.0,95163.0,0.03785069]
[1768738979419,0.11442706,95180.0,95164.0,0.03785069]
[1768738986125,0.11442706,95180.0,95165.0,0.03785069]
[1768738987020,0.11442706,95180.0,95169.0,0.02838771]
[1768738989222,0.11442706,95180.0,95173.0,0.02838771]
[1768739008345,0.11442706,95180.0,95174.0,0.02838771]
[1768739019450,0.11442706,95180.0,95169.0,0.02838771]
[1768739029355,0.11442706,95180.0,95174.0,0.02838771]
[1768739033057,0.11442706,95180.0,95170.0,0.03785069]
[1768739033650,0.11442706,95180.0,95169.0,0.03785069]
[1768739035259,0.11442706,95180.0,95170.0,0.03785069]
[1768739035459,0.11442706,95180.0,95169.0,0.03785069]
[1768739036659,0.11442706,95180.0,95170.0,0.03785069]
[1768739037263,0.11442706,95180.0,95169.0,0.03785069]
[1768739037464,0.11442706,95180.0,95164.0,0.05676842]
[1768739037465,0.11442706,95180.0,95168.0,0.03785069]
[1768739041467,0.11442706,95180.0,95169.0,0.03785069]
[1768739041656,0.11442706,95180.0,95168.0,0.03785069]
[1768739041858,0.11442706,95180.0,95169.0,0.03785069]
[1768739069295,0.11442706,95180.0,95164.0,0.07903202]
[1768739069502,0.11442706,95180.0,95164.0,0.03785069]
[1768739073605,0.11442706,95180.0,95164.0,0.07866034]
[1768739073907,0.11442706,95180.0,95164.0,0.03785069]
[1768739074304,0.11442706,95180.0,95164.0,0.08010949]
[1768739075807,0.11442706,95180.0,95164.0,0.07963954]
[1768739076907,0.11442706,95180.0,95164.0,0.03785069]
[1768739077407,0.11442706,95180.0,95164.0,0.07943985]
[1768739079311,0.11442706,95180.0,95171.0,0.03785069]
[1768739082609,0.11168131,95178.0,95167.0,0.05676842]
[1768739083012,0.11168131,95178.0,95166.0,0.05676842]
[1768739090117,0.11168131,95178.0,95165.0,0.05676842]
[1768739090514,0.11168131,95178.0,95166.0,0.05676842]
[1768739093017,0.11168131,95178.0,95174.0,0.02838043]
[1768739096520,0.11168131,95178.0,95166.0,0.05676842]
[1768739098224,0.11168131,95178.0,95165.0,0.05676842]
[1768739099420,0.11168131,95178.0,95166.0,0.05676842]
[1768739109427,0.11168131,95178.0,95164.0,0.04091053]
[1768739109629,0.11168131,95178.0,95160.0,0.05676842]
[1768739110023,0.11168131,95178.0,95164.0,0.04091053]
[1768739112722,0.11168131,95178.0,95164.0,0.08015473]
[1768739114430,0.11168131,95178.0,95164.0,0.03782924]
[1768739114631,0.11168131,95178.0,95164.0,0.07941117]
[1768739115130,0.11168131,95178.0,95164.0,0.03782924]
[1768739115636,0.11168131,95178.0,95164.0,0.07941117]
[1768739115930,0.11168131,95178.0,95164.0,0.03782924]
[1768739116631,0.11168131,95178.0,95164.0,0.07889537]
[1768739118119,0.11168131,95178.0,95164.0,0.07905044]
[1768739118925,0.11168131,95178.0,95164.0,0.03782924]
[1768739119231,0.11168131,95178.0,95164.0,0.07945782]
[1768739119530,0.11168131,95178.0,95168.0,0.03782924]
[1768739135237,0.04702499,95187.0,95172.0,0.11030047]
[1768739135444,0.10943728,95214.0,95168.0,0.03782924]
[1768739135445,0.21144366,95204.0,95186.0,4e-05]
[1768739135644,0.20514205,95203.0,95180.0,0.03782924]
[1768739135838,0.10943728,95202.0,95182.0,0.03782924]
[1768739136034,0.10943728,95202.0,95184.0,0.03782924]
[1768739136236,0.10943728,95202.0,95182.0,0.03782924]
[1768739137438,0.10943728,95202.0,95181.0,0.03782924]
[1768739137746,0.11507131,95200.0,95181.0,0.03782924]
[1768739137932,0.09015531,95197.0,95181.0,0.03782924]
[1768739138132,0.11507131,95196.0,95181.0,0.03782924]
[1768739138432,0.11507131,95196.0,95175.0,0.05676842]
[1768739138433,0.11507131,95196.0,95180.0,0.03782924]
[1768739139044,0.20522662,95196.0,95180.0,0.03782924]
[1768739139443,0.20522662,95196.0,95180.0,0.07954112]
[1768739139744,0.20522662,95196.0,95180.0,0.03782924]
[1768739139944,0.11507131,95195.0,95180.0,0.03782924]
[1768739141344,0.11507131,95195.0,95179.0,0.03782924]
[1768739142546,0.11507131,95195.0,95180.0,0.001]
[1768739143246,0.11507131,95195.0,95179.0,0.03782924]
[1768739144249,0.11507131,95195.0,95178.0,0.03782924]
[1768739145042,0.09015531,95194.0,95178.0,0.03782924]
[1768739145248,0.09015531,95190.0,95173.0,0.05676842]
[1768739145440,0.09015531,95190.0,95164.0,0.11598529]
[1768739145441,0.09015531,95188.0,95169.0,0.00231169]
[1768739145648,0.09015531,95186.0,95169.0,0.00231169]
[1768739145947,0.11507131,95185.0,95169.0,0.00231169]
[1768739146851,0.09015531,95184.0,95169.0,0.00231169]
[1768739147148,0.11507131,95183.0,95169.0,0.00231169]
[1768739147340,0.09015531,95182.0,95169.0,0.00231169]
[1768739147744,0.09015531,95178.0,95164.0,0.09464]
[1768739147946,0.09015531,95176.0,95164.0,0.09464]
[1768739148134,0.20522662,95176.0,95164.0,0.09464]
[1768739148540,0.11507131,95175.0,95164.0,0.09464]
[1768739148741,0.11507131,95175.0,95158.0,0.09464]
[1768739152554,0.09041012,95173.0,95158.0,0.09464]
[1768739152946,0.11672997,95172.0,95158.0,0.09464]
[1768739154253,0.09041012,95173.0,95158.0,0.09464]
[1768739155053,0.09041012,95173.0,95158.0,0.17033187]
[1768739155248,0.09041012,95173.0,95158.0,0.17133187]
[1768739157650,0.09041012,95173.0,95159.0,0.07569187]
[1768739159054,0.09041012,95173.0,95158.0,0.17133187]
[1768739159455,0.09041012,95173.0,95170.0,0.02831106]
[1768739159957,0.09041012,95173.0,95159.0,0.001]
[1768739160156,0.09041012,95173.0,95158.0,0.09464]
[1768739160353,0.11672997,95175.0,95158.0,0.09564]
[1768739162353,0.20714009,95173.0,95159.0,0.001]
[1768739163062,0.20714009,95173.0,95158.0,0.09464]
[1768739163260,0.20714009,95173.0,95158.0,0.09564]
[1768739163954,0.20714009,95173.0,95159.0,0.001]
[1768739164761,0.11672997,95172.0,95159.0,0.001]
[1768739165363,0.11672997,95172.0,95163.0,0.05666638]
[1768739169371,0.20714009,95172.0,95167.0,0.05666638]
[1768739170363,0.20714009,95172.0,95167.0,0.09762781]
[1768739171670,0.20714009,95172.0,95167.0,0.05666638]
[1768739171858,0.20714009,95172.0,95167.0,0.09879189]
[1768739172061,0.20714009,95172.0,95168.0,0.05666638]
[1768739172955,0.20714009,95172.0,95168.0,0.09793055]
[1768739173566,0.09041012,95171.0,95168.0,0.09793055]
[1768739173765,0.11672997,95172.0,95168.0,0.09793055]
[1768739173965,0.09464,95181.0,95168.0,0.05666638]
[1768739174667,0.09464,95181.0,95167.0,0.05666638]
[1768739175268,0.09464,95181.0,95172.0,0.03780776]
[1768739175768,0.09041012,95180.0,95172.0,0.03780776]
[1768739176159,0.09041012,95176.0,95168.0,0.05666638]
[1768739176360,0.11672997,95175.0,95168.0,0.05666638]
[1768739177270,0.11672997,95175.0,95169.0,0.05666638]
[1768739178469,0.11672997,95175.0,95170.0,0.05666638]
[1768739191292,0.11672997,95175.0,95165.0,0.04194496]
[1768739192591,0.11672997,95175.0,95165.0,0.04147618]
[1768739193293,0.11672997,95175.0,95161.0,0.07569187]
[1768739193494,0.11672997,95175.0,95165.0,0.04147618]
[1768739193995,0.11672997,95175.0,95161.0,0.07569187]
[1768739194196,0.11672997,95175.0,95161.0,0.11725489]
[1768739195297,0.09041012,95176.0,95161.0,0.11725489]
[1768739195496,0.09041012,95176.0,95161.0,0.11745351]
[1768739197193,0.11905195,95179.0,95161.0,0.11750413]
[1768739197398,0.11905195,95179.0,95160.0,0.010513]
[1768739197603,0.11905195,95179.0,95161.0,0.04181226]
[1768739198698,0.11905195,95179.0,95160.0,0.12461245]
[1768739199999,0.11905195,95179.0,95161.0,0.04090204]
[1768739202200,0.11905195,95179.0,95161.0,0.04190204]
[1768739202402,0.11905195,95179.0,95161.0,0.04219294]
[1768739202802,0.11905195,95179.0,95161.0,0.04119294]
[1768739204409,0.11905195,95179.0,95160.0,0.12461245]
[1768739204598,0.11905195,95179.0,95160.0,0.11409945]
[1768739205507,0.11905195,95179.0,95160.0,0.15492547]
[1768739206013,0.11905195,95179.0,95160.0,0.11409945]
[1768739206208,0.11905195,95179.0,95173.0,0.03786139]
[1768739207409,0.21820808,95179.0,95175.0,0.03491179]
[1768739208412,0.21820808,95179.0,95164.0,0.04177502]
[1768739208611,0.21820808,95179.0,95164.0,0.04173692]
[1768739209105,0.21820808,95179.0,95163.0,0.07569187]
[1768739209305,0.21820808,95179.0,95161.0,0.010513]
[1768739209306,0.21820808,95179.0,95164.0,0.04173692]
[1768739209707,0.21820808,95179.0,95164.0,0.0431104]
[1768739210312,0.09464,95181.0,95164.0,0.0431104]
[1768739210705,0.2092024,95181.0,95164.0,0.0431104]
[1768739210906,0.1145624,95180.0,95164.0,0.04327912]
[1768739211318,0.1145624,95180.0,95167.0,0.0567864]